bitfinex/quotes_ETHUSD_20250925
["timestamp","ask_amount","ask_price","bid_price","bid_amount"]
[1758810014033,5.48409023,4025.7,4025.1,0.124]
[1758810014228,0.124,4025.8,4025.1,2.60840845]
[1758810014529,2.48365456,4026.4,4025.2,0.02484348]
[1758810014862,3.0,4026.0,4025.4,0.124]
[1758810015036,0.4574,4026.7,4025.5,6.531]
[1758810015365,2.48391167,4026.0,4025.5,6.531]
[1758810015664,0.7066,4025.9,4025.1,0.91394085]
[1758810015868,0.7066,4025.9,4025.2,4.469]
[1758810016041,2.48396806,4025.9,4025.2,4.469]
[1758810016364,2.48397959,4025.8,4025.2,4.469]
[1758810016569,0.2492,4025.7,4025.1,2.07]
[1758810016772,18.011381,4025.6,4024.8,2.07]
[1758810016981,0.4574,4026.2,4025.0,4.468]
[1758810017185,2.48406489,4025.7,4025.1,6.538]
[1758810017479,0.4574,4025.7,4025.1,4.469]
[1758810017644,2.48410174,4025.6,4025.1,4.469]
[1758810017843,2.48373155,4026.2,4025.2,0.4462]
[1758810018148,2.48403849,4025.8,4025.1,5.37135823]
[1758810018347,3.0,4026.2,4025.2,2.50913281]
[1758810018669,4.199401,4026.1,4025.3,2.48428179]
[1758810018870,3.414401,4026.1,4025.3,2.48428179]
[1758810019174,2.48353743,4026.6,4025.8,2.48397177]
[1758810019348,2.48355519,4026.5,4025.9,6.537]
[1758810019554,2.73260865,4026.8,4025.9,6.537]
[1758810019765,2.48340938,4026.8,4025.9,6.537]
[1758810019962,2.48343935,4026.7,4025.9,6.537]
[1758810020163,0.4574,4026.9,4025.9,9.02091621]
[1758810020482,2.94071028,4026.9,4026.1,2.48377337]
[1758810020650,3.4574,4026.9,4026.1,2.48377337]
[1758810020851,3.0,4026.9,4026.2,2.48372391]
[1758810021190,29.696647,4026.8,4025.2,0.245]
[1758810021388,0.7066,4026.8,4025.3,6.55584286]
[1758810021576,0.7066,4026.8,4026.0,2.48380412]
[1758810021755,2.48358896,4026.5,4026.1,4.463]
[1758810022078,0.4574,4026.5,4026.2,4.463]
[1758810022279,2.48380203,4026.1,4024.1,2.4850277]
[1758810022481,2.48366987,4026.3,4025.1,0.245]
[1758810022689,2.48366987,4026.3,4025.4,2.48420424]
[1758810022855,2.48373892,4026.2,4025.4,2.48420424]
[1758810023051,3.0,4026.6,4025.6,2.48404869]
[1758810023249,2.48357336,4026.5,4025.7,0.0248404]
[1758810023454,2.4836541,4026.4,4025.8,6.534]
[1758810023656,2.48366987,4026.3,4025.8,6.534]
[1758810023857,2.48378361,4026.2,4025.8,6.534]
[1758810024156,0.2492,4026.6,4025.8,6.779]
[1758810024365,2.48358908,4026.5,4025.9,4.462]
[1758810024566,2.48385756,4026.0,4025.4,4.461]
[1758810024776,0.7066,4026.4,4025.4,6.531]
[1758810024976,0.124,4025.9,4025.4,6.531]
[1758810025256,0.3732,4025.9,4025.4,6.531]
[1758810025457,2.48397833,4025.8,4025.4,6.531]
[1758810025671,2.48416345,4025.5,4025.4,6.531]
[1758810025865,2.48412239,4025.6,4025.4,4.464]
[1758810026065,0.2492,4025.7,4025.4,4.464]
[1758810026291,0.124,4026.1,4025.5,0.124]
[1758810026657,0.124,4026.1,4025.5,0.14884163]
[1758810026854,0.124,4026.1,4025.6,2.48406044]
[1758810027205,0.124,4026.6,4025.9,2.6078945]
[1758810027509,0.2492,4027.3,4026.4,2.48355456]
[1758810027706,0.3732,4027.3,4026.5,9.01551361]
[1758810027862,2.85627683,4027.3,4026.6,0.124]
[1758810028057,0.124,4027.3,4026.6,1.20469108]
[1758810028284,0.02,4027.9,4026.7,0.6912]
[1758810028492,0.02,4027.9,4027.0,2.48323379]
[1758810028693,0.02,4027.9,4027.0,0.02483238]
[1758810028997,0.02,4027.9,4027.4,2.48293976]
[1758810029205,0.02,4027.9,4027.5,4.464]
[1758810029690,0.02,4027.9,4027.6,4.463]
[1758810029890,2.48280656,4027.7,4027.5,4.462]
[1758810030191,2.48275597,4027.8,4027.5,4.462]
[1758810030392,2.48280947,4027.7,4027.5,4.462]
[1758810030693,2.5027345,4027.9,4027.5,4.462]
[1758810030899,2.48275463,4027.8,4027.5,4.462]
[1758810031190,0.02,4027.9,4027.5,4.462]
[1758810031400,2.48288671,4027.6,4027.3,2.07]
[1758810031561,2.48282273,4027.7,4027.4,4.46]
[1758810031760,2.48287688,4027.6,4027.4,4.46]
[1758810031964,0.7066,4027.8,4027.4,4.46]
[1758810031965,2.48285374,4027.7,4027.4,4.46]
[1758810032165,2.48288505,4027.6,4027.4,4.46]
[1758810032366,2.48274492,4027.8,4027.3,4.458]
[1758810032601,2.50269493,4027.9,4027.3,4.458]
[1758810032900,2.4832226,4027.1,4026.9,4.457]
[1758810033086,2.48323814,4027.0,4026.9,4.457]
[1758810033292,0.7066,4027.0,4026.1,0.245]
[1758810033499,2.48324043,4027.0,4026.2,6.527]
[1758810033700,2.48304034,4027.4,4026.3,2.75349942]
[1758810033888,2.48324247,4027.0,4026.3,2.7286579]
[1758810034288,2.48311481,4027.2,4026.4,2.48359718]
[1758810034507,0.2492,4027.5,4026.3,0.245]
[1758810034713,0.4574,4027.8,4026.3,0.99857042]
[1758810034883,5.4827858,4027.8,4026.4,7.2162]
[1758810035072,5.4827858,4027.8,4026.5,4.8342]
[1758810035402,2.48280702,4027.7,4027.0,2.48320887]
[1758810035636,2.48281569,4027.7,4027.1,4.455]
[1758810035904,2.48282601,4027.7,4027.1,4.455]
[1758810036073,2.50269892,4027.9,4027.1,4.455]
[1758810036074,0.02,4027.9,4027.1,4.455]
[1758810036275,2.48281214,4027.7,4026.9,4.453]
[1758810036499,2.48310246,4027.3,4026.5,0.245]
[1758810036671,0.7066,4027.6,4026.6,5.412]
[1758810036881,0.7066,4027.6,4026.6,7.89548209]
[1758810037088,0.7066,4027.6,4026.7,4.46]
[1758810037089,3.781793,4027.5,4026.7,4.46]
[1758810037319,0.2492,4027.5,4026.7,4.46]
[1758810037823,2.48304838,4027.4,4026.7,4.46]
[1758810038121,0.124,4027.3,4026.7,4.46]
[1758810038502,0.124,4027.8,4027.2,2.48311481]
[1758810038705,0.124,4027.8,4027.3,6.93904407]
[1758810039013,0.02,4027.9,4027.7,2.60676356]
[1758810039183,0.02,4027.9,4027.8,4.456]
[1758810039817,0.02,4027.9,4027.7,0.124]
[1758810040140,0.02,4027.9,4027.7,2.608]
[1758810040439,2.48285012,4027.7,4027.4,2.07]
[1758810040608,0.02,4027.9,4027.7,4.454]
[1758810041007,0.02,4027.9,4027.7,4.6928]
[1758810041408,0.02,4027.9,4027.7,4.454]
[1758810041605,0.02,4027.9,4027.8,0.2388]
[1758810041811,0.02,4027.9,4027.8,3.16854492]
[1758810042040,0.02,4027.9,4027.8,3.91341744]
[1758810042452,0.02,4027.9,4027.8,3.88859]
[1758810042757,0.02,4027.9,4027.8,0.95884508]
[1758810042956,0.02,4027.9,4027.8,6.52]
[1758810043194,0.02,4027.9,4027.4,0.2388]
[1758810043357,17.58554761,4027.5,4026.9,2.069]
[1758810043536,2.48323814,4027.0,4026.9,2.069]
[1758810043707,2.48315223,4027.2,4026.9,2.069]
[1758810043913,2.7257106,4027.4,4026.8,0.002]
[1758810044112,2.7257106,4027.4,4026.8,4.454]
[1758810044325,0.2427,4027.4,4026.9,4.451]
[1758810044539,2.48312087,4027.2,4026.9,4.451]
[1758810044741,0.2427,4027.7,4026.9,4.451]
[1758810044937,0.2427,4027.7,4026.8,0.002]
[1758810044938,8.107255,4027.7,4027.0,4.449]
[1758810045248,2.48305731,4027.3,4027.0,4.449]
[1758810045415,2.48304183,4027.4,4026.8,0.2408]
[1758810045611,2.48304183,4027.4,4026.9,4.447]
[1758810045945,2.48304183,4027.4,4026.8,0.2408]
[1758810045946,2.48322943,4027.1,4027.0,4.447]
[1758810046147,3.0,4027.4,4026.8,0.002]
[1758810046335,2.4832998,4026.9,4026.8,0.002]
[1758810046528,24.8232958,4026.9,4026.8,0.002]
[1758810046849,2.48358261,4026.5,4025.8,2.945]
[1758810047346,5.924984,4026.4,4025.4,2.48421161]
[1758810047522,0.2427,4026.5,4025.5,9.00015622]
[1758810047720,2.48363957,4026.4,4025.5,9.00015622]
[1758810048035,2.4832829,4027.0,4025.6,1.4778]
[1758810048232,2.72581738,4027.2,4025.7,0.6858]
[1758810048233,2.48316156,4027.2,4025.7,0.6858]
[1758810048529,2.48316567,4027.2,4025.8,1.48518]
[1758810048731,3.0,4027.6,4025.9,3.16971663]
[1758810049042,2.48328721,4027.0,4026.2,2.48372869]
[1758810049351,2.72581397,4027.3,4026.3,2.48365301]
[1758810049645,2.72580779,4027.3,4026.5,2.48354297]
[1758810049842,17.60554761,4027.9,4026.7,2.48339991]
[1758810049843,2.48281589,4027.7,4026.7,2.48339991]
[1758810050140,2.48292985,4027.5,4026.5,0.26363546]
[1758810050449,0.124,4027.6,4026.9,0.124]
[1758810050747,2.60687901,4027.6,4026.9,0.124]
[1758810051048,2.48314808,4027.2,4026.9,4.572]
[1758810051236,2.48307021,4027.3,4026.9,4.572]
[1758810051625,2.48312882,4027.2,4026.9,4.572]
[1758810051825,0.2427,4027.5,4026.9,0.124]
[1758810052025,2.48323814,4027.0,4026.7,4.446]
[1758810052237,2.48322637,4027.1,4026.6,4.446]
[1758810052545,0.124,4027.2,4026.7,0.2388]
[1758810052715,2.48280656,4027.7,4026.8,0.6858]
[1758810052916,2.83895882,4027.6,4026.9,2.60728484]
[1758810053134,0.23209698,4027.5,4026.9,2.60728484]
[1758810053335,3.0,4027.8,4027.0,0.02483238]
[1758810053535,0.23208624,4027.7,4027.2,0.124]
[1758810053739,2.48293256,4027.5,4027.2,0.124]
[1758810053924,3.124,4027.8,4027.2,0.124]
[1758810054125,0.124,4027.3,4026.7,0.124]
[1758810054325,2.48326591,4027.0,4026.7,0.124]
[1758810054525,0.2427,4026.9,4026.7,0.124]
[1758810054731,2.72606147,4026.8,4026.6,0.773]
[1758810055017,2.48332066,4026.9,4026.6,0.773]
[1758810055212,2.48352261,4026.6,4026.3,0.124]
[1758810055417,0.6943,4026.6,4026.3,0.124]
[1758810055634,3.1777933,4026.6,4026.3,0.124]
[1758810055845,2.48366616,4026.4,4025.4,2.069]
[1758810056051,7.92521673,4026.3,4025.5,4.446]
[1758810056262,2.72637735,4026.3,4025.5,4.446]
[1758810056417,2.72637735,4026.3,4025.6,2.48409594]
[1758810056616,2.48373155,4026.2,4025.5,4.446]
[1758810056855,2.48398958,4025.8,4025.5,4.446]
[1758810057018,0.2427,4026.3,4025.6,4.446]
[1758810057429,2.48373155,4026.2,4025.6,4.446]
[1758810057634,2.72639078,4026.3,4025.6,4.446]
[1758810057854,0.2427,4026.3,4025.6,4.446]
[1758810058348,2.48329894,4027.0,4026.1,2.48375021]
[1758810058516,3.0,4027.1,4026.2,4.446]
[1758810058517,14.00743071,4026.9,4026.2,4.446]
[1758810058716,17.82824761,4027.2,4025.9,4.446]
[1758810058717,8.19379901,4026.8,4025.9,4.446]
[1758810058928,8.65331174,4026.7,4025.8,4.446]
[1758810059165,5.37253574,4026.6,4024.9,0.2388]
[1758810059316,5.37253574,4026.6,4025.5,4.446]
[1758810059317,2.48371568,4026.3,4025.5,4.446]
[1758810059517,2.48371568,4026.3,4025.6,2.48405756]
[1758810059719,2.72643361,4026.2,4025.5,6.93014337]
[1758810059951,0.2427,4026.2,4025.6,2.48409648]
[1758810060321,0.2427,4026.8,4025.8,2.48395785]
[1758810060538,2.71564332,4026.7,4025.7,2.48404004]
[1758810060871,2.71573462,4026.6,4025.9,2.48386801]
[1758810061021,0.23220989,4026.5,4026.2,2.48371726]
[1758810061221,2.48342638,4026.7,4026.1,4.446]
[1758810061418,2.48342638,4026.7,4025.8,2.48397806]
[1758810061419,2.48359234,4026.5,4025.8,2.48397806]
[1758810061724,0.24834264,4026.6,4025.9,6.516]
[1758810062037,2.48342682,4026.7,4026.0,2.48380179]
[1758810062366,2.48365243,4026.4,4025.9,4.446]
[1758810062544,2.4836848,4026.3,4025.9,4.446]
[1758810062745,0.6714,4026.2,4025.6,0.002]
[1758810062946,2.48398024,4025.8,4025.6,0.002]
[1758810063149,6.59906004,4025.7,4025.6,0.002]
[1758810063349,2.4837952,4026.1,4025.6,0.002]
[1758810063559,2.48360852,4026.4,4025.6,0.6738]
[1758810063726,2.48353412,4026.6,4025.7,0.0248404]
[1758810064061,2.48338083,4026.8,4026.0,2.48379636]
[1758810064264,2.48422918,4027.1,4026.1,0.26043793]
[1758810064564,2.71529763,4027.0,4026.1,2.74421405]
[1758810064765,2.48324367,4027.0,4026.3,2.48361916]
[1758810064924,2.48324367,4027.0,4026.4,4.447]
[1758810065122,2.48418099,4027.1,4026.4,6.93059236]
[1758810065363,0.23205702,4027.0,4026.4,4.447]
[1758810065571,0.001,4027.1,4026.5,2.4834931]
[1758810065738,0.124,4027.0,4026.5,2.48354472]
[1758810066140,0.001,4027.1,4026.7,2.48342315]
[1758810066346,0.001,4027.1,4026.6,0.3596]
[1758810066567,0.001,4027.1,4026.7,0.2356]
[1758810066865,0.001,4027.1,4026.8,0.02483361]
[1758810067181,0.001,4027.1,4026.9,4.57]
[1758810067348,0.001,4027.1,4027.0,2.48323814]
[1758810067549,0.001,4027.1,4026.9,4.8056]
[1758810067948,0.001,4027.1,4027.0,2.48323814]
[1758810068166,0.001,4027.1,4026.9,4.8056]
[1758810068832,0.001,4027.1,4026.9,0.3596]
[1758810069146,0.001,4027.1,4027.0,4.446]
[1758810069675,0.001,4027.1,4026.9,0.3596]
[1758810069876,0.001,4027.1,4027.0,4.446]
[1758810072275,0.001,4027.1,4026.1,0.2432]
[1758810072276,2.48324549,4027.0,4026.1,0.2432]
[1758810072439,2.48324549,4027.0,4026.4,0.124]
[1758810072637,5.326783,4026.9,4026.5,4.446]
[1758810072842,0.125,4027.1,4026.6,3.18544076]
[1758810073066,0.125,4027.1,4026.6,0.2432]
[1758810073272,0.001,4027.1,4026.7,0.702]
[1758810073475,0.001,4027.1,4026.9,2.60724854]
[1758810073651,0.001,4027.1,4026.9,7.05329792]
[1758810073851,0.001,4027.1,4026.9,4.57]
[1758810074052,0.2277,4027.1,4026.9,4.446]
[1758810074263,0.001,4027.1,4026.9,4.446]
[1758810075446,0.001,4027.1,4026.6,0.124]
[1758810075447,0.2267,4027.0,4026.6,0.124]
[1758810075979,0.001,4027.1,4026.6,2.60748387]
[1758810076180,0.001,4027.1,4026.6,0.124]
[1758810076351,2.48323814,4027.0,4026.6,0.124]
[1758810076546,0.001,4027.1,4026.8,2.48334424]
[1758810076880,0.001,4027.1,4026.6,0.124]
[1758810077178,0.2267,4027.0,4026.6,4.569]
[1758810077381,14.90995548,4026.9,4025.7,0.2432]
[1758810077686,0.23248548,4026.8,4026.4,0.124]
[1758810077982,0.23248548,4026.7,4026.4,0.124]
[1758810078286,2.83410155,4026.8,4026.2,4.445]
[1758810078483,2.71593307,4026.7,4026.2,4.445]
[1758810078779,0.6962,4026.7,4026.2,4.445]
[1758810078948,2.60740189,4026.8,4026.2,6.92872228]
[1758810079288,2.48404004,4025.7,4025.6,0.002]
[1758810079499,26.57736985,4025.7,4025.6,0.002]
[1758810079784,18.41875385,4025.7,4025.6,0.002]
[1758810079992,18.09395285,4025.7,4025.6,0.002]
[1758810080377,9.69790085,4025.7,4025.6,0.002]
[1758810080880,9.45741285,4025.7,4025.6,0.002]
[1758810081483,14.34205485,4025.7,4025.6,0.002]
[1758810081782,20.85705485,4025.7,4025.6,0.002]
[1758810082269,12.07397385,4025.7,4025.6,0.002]
[1758810082580,10.54239395,4025.7,4025.6,0.002]
[1758810082779,6.30428491,4025.7,4025.6,0.002]
[1758810083081,4.445,4026.2,4025.6,0.002]
[1758810083269,2.07,4026.5,4025.6,0.704]
[1758810083270,0.2267,4026.5,4025.6,0.704]
[1758810083455,0.23195822,4026.6,4025.7,0.2680404]
[1758810083781,0.001,4027.0,4025.8,2.5288]
[1758810083979,0.001,4027.0,4025.9,0.92324444]
[1758810084295,3.001,4027.0,4026.0,4.445]
[1758810084477,0.001,4027.0,4026.5,2.48354122]
[1758810084694,0.001,4027.0,4026.6,0.702]
[1758810085068,0.001,4027.0,4026.7,0.24042059]
[1758810085268,0.001,4027.0,4026.7,3.18260024]
[1758810085481,0.001,4027.0,4026.7,2.94217965]
[1758810085680,0.001,4027.0,4026.9,2.4832998]
[1758810085877,0.001,4027.0,4026.8,0.4588]
[1758810086079,0.001,4027.0,4026.5,0.4588]
[1758810086494,0.001,4027.0,4026.1,2.4837802]
[1758810086696,2.48334831,4026.9,4026.2,2.48372192]
[1758810086864,0.6972,4027.0,4026.2,2.48372332]
[1758810087215,0.6972,4027.0,4026.0,4.9038]
[1758810087216,0.001,4027.0,4026.3,0.2432]
[1758810087397,0.001,4027.0,4026.3,0.702]
[1758810087710,0.001,4027.0,4026.5,2.48352617]
[1758810088071,0.001,4027.0,4026.7,2.48336745]
[1758810088497,0.001,4027.0,4026.5,4.444]
[1758810088673,0.001,4027.0,4026.7,0.702]
[1758810088867,0.001,4027.0,4026.7,0.4588]
[1758810089106,0.001,4027.0,4026.8,0.702]
[1758810089484,0.001,4027.0,4026.9,0.2432]
[1758810090012,0.001,4027.0,4026.7,0.124]
[1758810090501,0.001,4027.0,4026.1,4.444]
[1758810090678,0.001,4027.0,4026.8,0.3672]
[1758810091002,0.001,4027.0,4026.8,0.124]
[1758810091378,0.001,4027.0,4026.5,4.443]
[1758810091379,2.48330441,4026.9,4026.5,4.443]
[1758810091581,0.001,4027.0,4026.5,0.3672]
[1758810091982,0.001,4027.0,4026.7,2.483375]
[1758810092190,0.001,4027.0,4026.9,2.4832998]
[1758810092508,0.001,4027.0,4026.9,0.124]
[1758810092711,0.001,4027.0,4026.9,4.567]
[1758810093002,0.001,4027.0,4026.6,0.124]
[1758810093412,0.2277,4027.0,4026.6,0.124]
[1758810093708,13.965723,4026.9,4025.9,0.4588]
[1758810093880,0.2267,4026.9,4026.0,6.513]
[1758810094079,2.71001143,4026.9,4026.2,2.48372763]
[1758810094273,2.48331143,4026.9,4026.2,2.48372763]
[1758810094668,0.001,4027.0,4026.3,0.72683669]
[1758810094870,0.001,4027.0,4026.3,1.42598367]
[1758810095068,0.001,4027.0,4026.4,0.72683608]
[1758810095473,0.001,4027.0,4026.6,2.48344303]
[1758810095674,0.001,4027.0,4026.7,2.48342197]
[1758810095890,2.48423982,4027.0,4026.7,0.2432]
[1758810096091,2.48423982,4027.0,4026.4,0.2432]
[1758810096092,2.48425389,4027.0,4026.4,0.2432]
[1758810096426,0.2277,4027.0,4026.3,4.442]
[1758810096930,2.48346909,4026.7,4026.0,2.4838543]
[1758810097112,2.71094243,4027.0,4026.1,4.6852]
[1758810097293,2.4832998,4026.9,4026.1,4.6852]
[1758810097496,0.2277,4027.0,4026.1,4.6852]
[1758810097719,2.4832998,4026.9,4026.1,7.16899007]
[1758810097926,0.001,4027.0,4026.4,2.48355269]
[1758810098235,2.48348263,4027.0,4026.3,2.48366326]
[1758810098398,0.0002,4027.0,4026.2,0.72683731]
[1758810098597,0.0002,4027.0,4026.5,2.4834975]
[1758810098930,0.0002,4027.0,4026.3,0.2432]
[1758810099294,2.48331555,4026.9,4026.3,0.2432]
[1758810099534,2.48345577,4027.0,4026.3,0.2432]
[1758810099827,0.6962,4026.9,4025.6,0.002]
[1758810100139,0.6962,4026.9,4025.7,0.375]
[1758810100140,2.48375693,4026.2,4025.7,0.375]
[1758810100340,0.0002,4027.0,4025.6,0.002]
[1758810100341,0.6962,4026.5,4025.6,0.002]
[1758810100498,2.48343903,4026.7,4026.6,0.002]
[1758810100696,2.7154541,4026.7,4026.6,0.002]
[1758810100896,31.0243021,4026.7,4026.6,0.002]
[1758810101095,31.4284631,4026.7,4026.6,0.002]
[1758810101341,2.48373155,4026.2,4026.1,0.002]
[1758810101502,5.71574662,4026.2,4026.1,0.002]
[1758810101836,36.41154662,4026.2,4026.1,0.002]
[1758810101990,24.24485462,4026.2,4026.1,0.002]
[1758810103128,2.48397833,4025.8,4025.7,0.002]
[1758810103438,15.8306464,4025.8,4025.7,0.002]
[1758810103650,24.2086874,4025.8,4025.7,0.002]
[1758810103801,23.18579661,4025.8,4025.7,0.002]
[1758810104236,5.58498707,4025.8,4025.7,0.002]
[1758810104445,8.0689654,4025.8,4025.7,0.002]
[1758810104647,8.7647654,4025.8,4025.7,0.002]
[1758810105027,8.0689654,4025.8,4025.7,0.002]
[1758810105227,17.7679024,4025.8,4025.7,0.002]
[1758810105417,9.8018234,4025.8,4025.7,0.002]
[1758810105617,9.0708474,4025.8,4025.7,0.002]
[1758810105982,0.124,4026.1,4025.7,0.6939]
[1758810106149,0.124,4026.1,4025.8,0.6919]
[1758810106774,4.441,4026.8,4025.9,0.6919]
[1758810106971,3.124,4026.3,4025.9,0.6919]
[1758810107207,3.124,4026.3,4026.0,0.2457]
[1758810107374,0.124,4026.3,4026.1,0.2457]
[1758810107579,0.124,4026.3,4026.2,0.2457]
[1758810107877,0.124,4026.7,4026.2,0.6919]
[1758810108172,0.0002,4027.0,4026.3,0.6919]
[1758810108173,0.1242,4027.0,4026.3,0.6919]
[1758810108362,3.0,4026.9,4026.3,0.6919]
[1758810108945,2.60748628,4027.0,4026.3,3.17551168]
[1758810108946,0.1242,4027.0,4026.3,3.17551168]
[1758810109148,0.1242,4027.0,4026.5,2.48354408]
[1758810109361,0.1242,4027.0,4026.5,2.6075465]
[1758810109637,0.1242,4027.0,4026.6,0.6919]
[1758810110042,0.1242,4027.0,4026.7,0.6919]
[1758810110859,0.1242,4027.0,4026.8,0.6919]
[1758810111076,0.1242,4027.0,4026.9,0.2457]
[1758810111479,0.0002,4027.0,4026.9,3.51757006]
[1758810111655,0.0002,4027.0,4026.9,3.49273707]
[1758810111859,0.0002,4027.0,4026.9,7.93273707]
[1758810112059,0.0002,4027.0,4026.9,4.6857]
[1758810112258,0.0002,4027.0,4026.9,4.44]
[1758810112458,0.0002,4027.0,4026.7,4.44]
[1758810113191,0.0002,4027.0,4026.8,0.2457]
[1758810113567,0.0002,4027.0,4026.7,4.44]
[1758810113772,0.0002,4027.0,4026.7,4.439]
[1758810114190,0.0002,4027.0,4026.8,0.2457]
[1758810114392,0.0002,4027.0,4026.7,4.6847]
[1758810114594,0.0002,4027.0,4026.7,4.439]
[1758810114801,0.0002,4027.0,4026.8,0.6919]
[1758810114985,0.0002,4027.0,4026.8,0.2457]
[1758810115383,0.0002,4027.0,4026.4,0.4462]
[1758810115583,0.0002,4027.0,4026.5,6.509]
[1758810115785,0.0002,4027.0,4026.6,2.48344236]
[1758810115961,0.0002,4027.0,4026.6,0.6919]
[1758810116297,0.0002,4027.0,4026.7,1.355]
[1758810116969,0.0002,4027.0,4026.6,4.438]
[1758810117170,2.48345097,4027.0,4026.6,4.438]
[1758810117472,0.2332,4026.9,4026.2,2.07]
[1758810117673,3.962971,4026.9,4025.2,0.50455593]
[1758810117872,2.4836659,4026.4,4025.8,0.413]
[1758810118077,2.48368285,4026.3,4025.8,0.413]
[1758810118297,2.48362888,4026.4,4025.8,0.413]
[1758810118508,2.48362888,4026.4,4025.7,0.002]
[1758810118509,0.4626,4026.4,4025.7,0.002]
[1758810118711,2.48381054,4026.1,4025.7,0.002]
[1758810118874,6.49805271,4026.3,4025.7,0.002]
[1758810118875,0.2332,4026.3,4025.7,0.002]
[1758810119079,2.7168717,4026.3,4025.7,0.002]
[1758810119277,0.2332,4026.3,4025.7,0.002]
[1758810119688,2.48386081,4026.0,4025.7,0.002]
[1758810119908,2.48397833,4025.8,4025.7,0.002]
[1758810120281,10.31180833,4025.8,4025.7,0.002]
[1758810120479,7.95479833,4025.8,4025.7,0.002]
[1758810120679,8.18676708,4025.8,4025.7,0.002]
[1758810120881,11.18676708,4025.8,4025.7,0.002]
[1758810121107,15.62376708,4025.8,4025.7,0.002]
[1758810121281,29.91936308,4025.8,4025.7,0.002]
[1758810121481,13.59331308,4025.8,4025.7,0.002]
[1758810121712,13.90248308,4025.8,4025.7,0.002]
[1758810122224,13.07166208,4025.8,4025.7,0.002]
[1758810122488,19.48573908,4025.8,4025.7,0.002]
[1758810122812,19.04285208,4025.8,4025.7,0.002]
[1758810123014,14.60585208,4025.8,4025.7,0.002]
[1758810123384,29.01302808,4025.8,4025.7,0.002]
[1758810123579,19.56030208,4025.8,4025.7,0.002]
[1758810123913,15.98022233,4025.8,4025.7,0.002]
[1758810124080,2.60797833,4025.8,4025.7,0.002]
[1758810124285,0.124,4025.8,4025.7,0.002]
[1758810124688,0.23275157,4026.3,4025.7,0.2289]
[1758810124996,0.124,4026.1,4025.7,0.2289]
[1758810125206,0.124,4026.1,4025.7,0.002]
[1758810125505,0.124,4026.1,4025.7,0.2289]
[1758810125821,8.068591,4026.0,4025.7,0.002]
[1758810125980,2.48397833,4025.8,4025.7,0.002]
[1758810126297,16.20429133,4025.8,4025.7,0.002]
[1758810126485,5.91297833,4025.8,4025.7,0.002]
[1758810126683,6.61177833,4025.8,4025.7,0.002]
[1758810126888,22.07694333,4025.8,4025.7,0.002]
[1758810127213,19.25656933,4025.8,4025.7,0.002]
[1758810127816,27.04827133,4025.8,4025.7,0.002]
[1758810128016,23.04917538,4025.8,4025.7,0.002]
[1758810128615,23.04917538,4025.8,4025.6,1e-08]
[1758810128616,5.48404004,4025.7,4025.6,1e-08]
[1758810128820,5.48404004,4025.7,4023.5,0.002]
[1758810128821,2.48441032,4025.1,4023.5,0.002]
[1758810129125,2.4850277,4024.1,4023.5,0.002]
[1758810129739,21.5423817,4024.1,4023.5,0.002]
[1758810129934,22.1617967,4024.1,4023.5,0.002]
[1758810130090,17.3122277,4024.1,4023.5,0.002]
[1758810130421,2.48533651,4023.6,4023.5,0.002]
[1758810130720,6.92133651,4023.6,4023.5,0.002]
[1758810130921,31.45170251,4023.6,4023.5,0.002]
[1758810131221,20.87442651,4023.6,4023.5,0.002]
[1758810131521,19.76869751,4023.6,4023.5,0.002]
[1758810131713,24.39743751,4023.6,4023.5,0.002]
[1758810131914,6.92133651,4023.6,4023.5,0.002]
[1758810132113,4.436,4023.6,4023.5,0.002]
[1758810132316,2.48533651,4023.6,4023.5,0.2433]
[1758810132490,0.2413,4024.6,4023.5,0.7052]
[1758810132832,3.652206,4024.5,4023.5,0.7052]
[1758810133120,2.48508079,4024.1,4023.6,0.7032]
[1758810133319,2.48508079,4024.1,4023.6,0.4619]
[1758810133488,2.48508079,4024.1,4023.7,0.2413]
[1758810133689,2.48508079,4024.1,4023.8,0.2413]
[1758810133912,2.48465724,4024.7,4023.9,0.2413]
[1758810134228,2.48478071,4024.5,4023.5,0.002]
[1758810134392,17.214151,4024.4,4023.5,0.002]
[1758810134592,2.48496595,4024.2,4023.5,0.002]
[1758810134793,2.4851661,4023.9,4023.5,0.002]
[1758810135111,2.48496595,4024.2,4023.5,0.002]
[1758810135294,4.436,4024.4,4023.6,0.2413]
[1758810135489,2.071,4025.1,4023.6,0.7032]
[1758810135728,5.48454151,4024.9,4023.8,2.48520986]
[1758810135885,0.124,4024.5,4023.9,0.2413]
[1758810136334,0.124,4024.5,4023.8,0.124]
[1758810136627,3.0,4024.9,4023.6,0.4619]
[1758810136628,2.60898354,4024.2,4023.6,0.4619]
[1758810136921,2.4850277,4024.1,4023.6,0.4619]
[1758810137141,0.124,4024.2,4023.6,0.4619]
[1758810137425,2.48522504,4023.8,4023.5,0.126]
[1758810137630,4.436,4024.6,4023.6,0.7032]
[1758810137920,0.124,4024.4,4023.7,0.3653]
[1758810138142,0.51374431,4024.9,4024.2,0.124]
[1758810138293,0.38974431,4024.9,4024.3,4.67985094]
[1758810138492,2.48422329,4025.5,4024.5,0.124]
[1758810138817,0.124,4025.1,4024.5,0.124]
[1758810139316,10.32044773,4025.0,4024.4,0.2413]